bitfinex-derivatives/quotes_BTCF0:USTF0_20251128
["timestamp","ask_amount","ask_price","bid_price","bid_amount"]
[1764351961605,0.02261,90426.0,90425.0,0.0321165]
[1764351961909,0.02261,90431.0,90430.0,0.054286]
[1764351962119,0.02261,90431.0,90430.0,0.474286]
[1764351962910,0.0439,90436.0,90435.0,0.02106]
[1764351963110,0.0439,90434.0,90433.0,0.0110556]
[1764351963609,0.0439,90431.0,90430.0,0.02106]
[1764351963799,0.0439,90431.0,90430.0,0.001]
[1764351964008,0.0439,90422.0,90421.0,0.00016589]
[1764351965306,0.0439,90427.0,90426.0,0.0110564]
[1764351966112,0.01264,90432.0,90431.0,0.0542859]
[1764351966308,0.01264,90453.0,90439.0,0.04323]
[1764351966614,0.01264,90453.0,90439.0,0.40323]
[1764351966615,0.0110539,90448.0,90439.0,0.40323]
[1764351966811,0.0236933,90453.0,90439.0,0.40323]
[1764351967008,0.0110535,90451.0,90439.0,0.40323]
[1764351967215,0.01264,90453.0,90439.0,0.40323]
[1764351967606,0.0439,90459.0,90458.0,0.0110525]
[1764351967808,0.05654,90456.0,90450.0,0.20630184]
[1764351968011,0.05654,90456.0,90450.0,0.44630184]
[1764351968217,0.05654,90456.0,90450.0,0.2510536]
[1764351968218,0.02261,90451.0,90450.0,0.2510536]
[1764351968406,0.02261,90451.0,90450.0,0.2721136]
[1764351969617,0.01264,90456.0,90455.0,0.02106]
[1764351969915,0.03525,90456.0,90455.0,0.02106]
[1764351970215,0.0336609,90472.0,90471.0,0.04323]
[1764351970420,0.0549509,90472.0,90471.0,0.04323]
[1764351970711,0.01264,90467.0,90462.0,0.21751964]
[1764351971015,0.0110516,90466.0,90465.0,0.0321117]
[1764351971209,0.0110516,90466.0,90465.0,0.0542817]
[1764351971809,0.01264,90467.0,90465.0,0.0542817]
[1764351972013,0.02261,90472.0,90471.0,0.011051]
[1764351972220,0.02261,90472.0,90471.0,0.401051]
[1764351972409,0.0439,90472.0,90471.0,0.401051]
[1764351972721,0.02261,90480.0,90479.0,0.04323]
[1764351973016,0.0336599,90480.0,90479.0,0.04323]
[1764351973217,0.0549499,90480.0,90479.0,0.04323]
[1764351973517,0.0675899,90480.0,90479.0,0.02106]
[1764351974109,0.05522549,90486.0,90485.0,0.02106]
[1764351974314,0.02261,90481.0,90480.0,0.0542799]
[1764351974513,0.02261,90481.0,90480.0,0.4542799]
[1764351974915,0.02288629,90486.0,90485.0,0.0538793]
[1764351975125,0.00127629,90486.0,90485.0,0.4138793]
[1764351976214,0.02245,90516.0,90515.0,0.04468]
[1764351976413,0.08791982,90519.0,90518.0,0.04468]
[1764351976616,1.61036982,90519.0,90518.0,0.04468]
[1764351976812,1.5,90519.0,90506.0,0.20646764]
[1764351977021,1.5,90519.0,90506.0,0.55646764]
[1764351977022,0.0110457,90515.0,90506.0,0.55646764]
[1764351977221,0.04519,90507.0,90506.0,0.20646764]
[1764351977515,0.03531,90516.0,90515.0,0.02291]
[1764351977715,0.02345,90519.0,90518.0,0.04468]
[1764351977922,0.02945,90519.0,90518.0,0.47468]
[1764351978122,0.02945,90519.0,90518.0,0.44468]
[1764351978321,1.52945,90519.0,90518.0,0.44468]
[1764351978521,0.001,90519.0,90518.0,0.44468]
[1764351978720,0.02345,90519.0,90518.0,0.41468]
[1764351978914,0.04619,90519.0,90518.0,0.41468]
[1764351979108,0.04619,90519.0,90518.0,0.04468]
[1764351979318,0.04619,90519.0,90518.0,0.44468]
[1764351979510,0.001,90519.0,90518.0,0.44468]
[1764351979815,0.0110451,90519.0,90518.0,0.44468]
[1764351980115,0.0562351,90519.0,90518.0,0.001]
[1764351980719,0.0562366,90507.0,90506.0,0.20646764]
[1764351980924,0.0562366,90507.0,90506.0,0.0001658]
[1764351981923,0.0562386,90491.0,90490.0,0.20630184]
[1764351982124,0.01286,90492.0,90481.0,0.25098184]
[1764351982125,0.0562397,90482.0,90481.0,0.25098184]
[1764351982423,0.0562397,90482.0,90481.0,0.46468]
[1764351982619,0.0562397,90482.0,90481.0,0.04468]
[1764351982816,0.0562397,90482.0,90481.0,0.02291]
[1764351983011,0.0562397,90482.0,90481.0,0.04468]
[1764351983216,0.00016549,90491.0,90482.0,0.04468]
[1764351983421,0.0110495,90483.0,90482.0,0.40468]
[1764351983820,0.0110492,90486.0,90485.0,0.04468]
[1764351984018,0.00016549,90491.0,90485.0,0.04468]
[1764351984019,0.01121409,90491.0,90490.0,0.04468]
[1764351984326,0.01121409,90491.0,90490.0,0.43468]
[1764351984729,0.00016549,90491.0,90490.0,0.43468]
[1764351985420,0.0110467,90507.0,90506.0,0.04468]
[1764351985621,0.0110453,90518.0,90517.0,0.02291]
[1764351985926,0.0562353,90518.0,90517.0,0.02291]
[1764351986119,0.0110456,90516.0,90511.0,0.02213]
[1764351986323,0.0110455,90516.0,90515.0,0.04453]
[1764351986520,0.0110455,90516.0,90515.0,0.46453]
[1764351986720,0.04338617,90526.0,90525.0,0.02213]
[1764351986927,0.00027617,90526.0,90516.0,0.20630184]
[1764351987119,0.00027617,90526.0,90525.0,0.04453]
[1764351987318,0.00636,90563.0,90525.0,0.4]
[1764351987534,0.04311,90541.0,90540.0,0.20630184]
[1764351987716,0.0326026,90540.0,90539.0,0.02213]
[1764351988029,0.04311,90530.0,90529.0,0.0001657]
[1764351990034,0.04511,90530.0,90529.0,0.3701657]
[1764351990635,0.04511,90530.0,90529.0,0.0001657]
[1764351991036,0.002,90530.0,90529.0,0.0446957]
[1764351991234,0.04511,90530.0,90529.0,0.0001657]
[1764351991433,0.04511,90530.0,90529.0,0.4346957]
[1764351991622,0.04511,90530.0,90529.0,0.0001657]
[1764351991827,0.04511,90530.0,90529.0,0.4446957]
[1764351991828,0.002,90530.0,90529.0,0.4446957]
[1764351993236,0.04511,90530.0,90529.0,0.0001657]
[1764351994728,0.04311,90521.0,90520.0,0.20630184]
[1764351994933,0.04311,90521.0,90511.0,0.20630184]
[1764351995133,0.0110425,90541.0,90533.0,0.0110433]
[1764351995426,0.01306,90545.0,90531.0,0.20630184]
[1764351995631,0.05617,90532.0,90531.0,0.20630184]
[1764351995934,0.0326032,90535.0,90534.0,0.02213]
[1764351996438,0.032604,90528.0,90527.0,0.02213]
[1764351996638,0.04311,90528.0,90527.0,0.0110442]
[1764351996840,0.04311,90528.0,90527.0,0.4131742]
[1764351997139,0.04311,90528.0,90527.0,0.40213]
[1764351997342,0.04311,90525.0,90524.0,0.0110445]
[1764351997640,0.04311,90525.0,90524.0,0.4531745]
[1764351997837,0.04311,90525.0,90524.0,0.4755745]
[1764351998035,0.001,90528.0,90527.0,0.0555742]
[1764351998240,0.001,90528.0,90527.0,0.4655742]
[1764351998628,0.17556,90565.0,90527.0,0.4655742]
[1764351998629,0.0110414,90550.0,90540.0,0.0555726]
[1764351998830,1.5110413,90551.0,90540.0,0.0555726]
[1764351999033,0.0110415,90549.0,90540.0,0.0555726]
[1764351999335,1.5,90551.0,90540.0,0.4555726]
[1764351999837,0.00116537,90541.0,90540.0,0.4555726]
[1764352000137,0.00416537,90541.0,90540.0,0.4555726]
[1764352002439,0.0110433,90534.0,90531.0,0.20630184]
[1764352002639,0.0110436,90532.0,90531.0,0.44453]
[1764352002835,0.00416537,90541.0,90531.0,0.44453]
[1764352002836,0.02156,90538.0,90537.0,0.055573]
[1764352003537,0.00316537,90541.0,90540.0,0.0555726]
[1764352003737,0.0110377,90580.0,90565.0,0.02213]
[1764352003937,0.0110393,90568.0,90565.0,0.02213]
[1764352004141,0.04338604,90566.0,90565.0,0.02213]
[1764352004341,0.04311,90564.0,90560.0,0.0110401]
[1764352004542,1.50027604,90566.0,90562.0,0.0110398]
[1764352004739,1.51131544,90566.0,90565.0,0.02213]
[1764352005635,1.50027604,90566.0,90565.0,0.0331695]
[1764352005835,1.50927604,90566.0,90565.0,0.02313]
[1764352006241,0.00427604,90566.0,90565.0,0.04453]
[1764352006440,0.0110395,90565.0,90563.0,0.0281479]
[1764352006646,0.02156,90557.0,90556.0,0.20630184]
[1764352006845,0.0541506,90556.0,90555.0,0.0001657]
[1764352007638,0.0541516,90548.0,90547.0,0.20630184]
[1764352007945,0.0541527,90539.0,90538.0,0.20630184]
[1764352008149,0.0541537,90531.0,90530.0,0.20630184]
[1764352008738,0.04311,90531.0,90530.0,0.20630184]
[1764352009140,0.04311,90531.0,90528.0,0.011044]
[1764352009339,0.04311,90531.0,90528.0,0.411044]
[1764352009842,0.04311,90531.0,90530.0,0.005]
[1764352010241,0.04311,90531.0,90530.0,0.001]
[1764352011148,0.04311,90531.0,90530.0,0.401]
[1764352011348,0.04311,90531.0,90530.0,0.001]
[1764352012349,0.04311,90531.0,90530.0,0.02713]
[1764352012550,0.04311,90531.0,90530.0,0.46953]
[1764352012847,0.0001657,90540.0,90538.0,0.02213]
[1764352013048,0.02156,90539.0,90538.0,0.02213]
[1764352013242,0.04311,90539.0,90538.0,0.02213]
[1764352013438,0.0541535,90535.0,90534.0,0.0110433]
[1764352013646,0.04311,90535.0,90534.0,0.2855733]
[1764352014149,0.0001657,90540.0,90539.0,0.0555727]
[1764352014353,0.0217257,90540.0,90539.0,0.0555727]
[1764352014551,0.0217257,90540.0,90539.0,0.4755727]
[1764352014849,0.0217257,90540.0,90539.0,0.4255727]
[1764352015047,0.0217257,90540.0,90539.0,0.0755727]
[1764352015243,0.0217257,90540.0,90539.0,0.0555727]
[1764352015636,0.0001657,90540.0,90539.0,0.0555727]
[1764352015839,0.0001657,90540.0,90539.0,0.4895727]
[1764352016042,0.04486,90558.0,90557.0,0.0110405]
[1764352016243,0.06936557,90558.0,90557.0,0.0110405]
[1764352016444,0.04486,90558.0,90557.0,0.0545805]
[1764352016848,1.51372,90564.0,90563.0,0.0110398]
[1764352017051,0.01306,90571.0,90565.0,0.04354]
[1764352017439,0.011039,90570.0,90565.0,0.04354]
[1764352017644,0.0110393,90568.0,90565.0,0.04354]
[1764352017952,0.0340105,90557.0,90556.0,0.23945244]
[1764352018146,0.0110405,90557.0,90556.0,0.0545806]
[1764352018353,1.5,90569.0,90560.0,0.04354]
[1764352018655,1.5110391,90569.0,90565.0,0.04354]
[1764352018948,0.0110394,90567.0,90565.0,0.04354]
[1764352019247,0.00227604,90566.0,90565.0,0.04354]
[1764352019644,0.00127604,90566.0,90565.0,0.44354]
[1764352019843,0.00227604,90566.0,90565.0,0.44354]
[1764352020644,0.04713604,90566.0,90565.0,0.44354]
[1764352020955,0.04713604,90566.0,90565.0,0.04354]
[1764352021149,0.04813604,90566.0,90565.0,0.04354]
[1764352021446,0.00327604,90566.0,90565.0,0.39354]
[1764352022644,0.00327604,90566.0,90565.0,0.37354]
[1764352023049,0.00310983,90566.0,90565.0,0.37354]
[1764352023248,1.5,90599.0,90565.0,0.83]
[1764352023550,0.04486,90574.0,90573.0,0.00016559]
[1764352024751,0.81486,90574.0,90573.0,0.00016559]
[1764352024952,0.0558994,90566.0,90565.0,0.008]
[1764352025146,0.0559012,90551.0,90550.0,0.20630184]
[1764352025454,0.01372,90552.0,90551.0,0.0110412]
[1764352025658,0.03669,90552.0,90551.0,0.0331512]
[1764352025855,0.02297,90552.0,90551.0,0.0545812]
[1764352026549,0.00016524,90561.0,90560.0,0.0545801]
[1764352026855,0.00016524,90561.0,90560.0,0.4845801]
[1764352028448,0.00016524,90561.0,90560.0,0.4855801]
[1764352028947,0.00016524,90561.0,90560.0,0.4905801]
[1764352029662,0.00016524,90561.0,90560.0,0.4875801]
[1764352030155,0.04502524,90561.0,90560.0,0.47654]
[1764352030355,0.04502524,90561.0,90560.0,0.003]
[1764352030953,0.04502524,90561.0,90560.0,0.002]
[1764352031147,0.04502524,90561.0,90560.0,0.003]
[1764352031550,0.46802524,90561.0,90560.0,0.001]
[1764352031756,0.78802524,90561.0,90560.0,0.001]
[1764352031954,0.04486,90551.0,90550.0,0.27448665]
[1764352032159,0.04486,90551.0,90550.0,0.01578996]
[1764352032360,0.02297,90543.0,90542.0,0.00016559]
[1764352032653,0.02297,90543.0,90542.0,0.44474789]
[1764352033066,0.04486,90552.0,90551.0,0.0110412]
[1764352033457,0.04486,90550.0,90549.0,0.0110415]
[1764352033954,0.05858,90558.0,90557.0,0.0331505]
[1764352034159,0.05858,90558.0,90557.0,0.02211]
[1764352034358,0.02297,90554.0,90553.0,0.0110409]
[1764352034859,0.04486,90554.0,90553.0,0.0110409]
[1764352035652,0.04486,90554.0,90553.0,0.0810409]
[1764352035854,0.04486,90554.0,90553.0,0.1021609]
[1764352036057,0.04486,90554.0,90553.0,0.1239309]
[1764352036260,0.0110405,90557.0,90556.0,0.0539306]
[1764352036459,0.0110405,90557.0,90556.0,0.2839306]
[1764352036657,0.0110403,90560.0,90556.0,0.2839306]
[1764352036855,0.00016524,90561.0,90560.0,0.04289]
[1764352037166,0.00016524,90561.0,90556.0,0.23]
[1764352037167,0.0448,90557.0,90556.0,0.0110406]
[1764352037355,0.02149,90554.0,90551.0,0.25869669]
[1764352037560,0.02149,90554.0,90553.0,0.04289]
[1764352037762,0.02149,90558.0,90557.0,0.0321604]
[1764352038057,0.02149,90558.0,90557.0,0.4839304]
[1764352038654,0.00016524,90561.0,90560.0,0.0321601]
[1764352038966,0.00016524,90561.0,90560.0,0.4839301]
[1764352039263,0.0448,90554.0,90553.0,0.0321609]
[1764352039567,0.02149,90560.0,90559.0,0.0321602]
[1764352039863,0.02149,90560.0,90559.0,0.0539302]
[1764352040451,0.0448,90560.0,90559.0,0.0539302]
[1764352040650,0.0558401,90560.0,90559.0,0.0539302]
[1764352040858,0.0558401,90560.0,90559.0,0.0321602]
[1764352041059,0.0448,90548.0,90547.0,0.14002]
[1764352041253,0.0448,90548.0,90547.0,0.1510617]
[1764352041859,0.0448,90548.0,90547.0,0.1189]
[1764352042064,0.0448,90543.0,90542.0,0.00016559]
[1764352042256,0.0448,90543.0,90526.0,0.00027617]
[1764352042257,0.0558442,90527.0,90526.0,0.00027617]
[1764352042559,0.1558442,90527.0,90526.0,0.00027617]
[1764352042764,0.1558442,90527.0,90516.0,8.574e-05]
[1764352042765,0.0558454,90517.0,90516.0,8.574e-05]
[1764352043456,0.0558465,90508.0,90507.0,0.0001657]
[1764352044464,0.02149,90512.0,90507.0,0.4301657]
[1764352044677,0.01318,90519.0,90517.0,0.02112]
[1764352044966,0.0001657,90526.0,90525.0,0.04289]
[1764352045166,0.04505927,90526.0,90525.0,0.2239344]
[1764352045362,0.00025927,90526.0,90525.0,0.4039344]
[1764352046371,0.00025927,90526.0,90525.0,0.0539344]
[1764352046663,0.00025927,90526.0,90525.0,0.4439344]
[1764352047260,0.00025927,90526.0,90525.0,0.4449344]
[1764352047771,0.00025927,90526.0,90525.0,0.4459344]
[1764352048464,0.01318,90552.0,90525.0,0.4459344]
[1764352048465,0.02187,90527.0,90525.0,0.002]
[1764352048666,0.04471,90536.0,90531.0,0.0110436]
[1764352048969,0.01388,90545.0,90531.0,0.41]
[1764352049162,0.0557524,90542.0,90531.0,0.41]
[1764352049461,0.01388,90545.0,90538.0,0.0110428]
[1764352049462,0.04471,90539.0,90538.0,0.0110428]
[1764352050259,0.04471,90539.0,90535.0,0.0110432]
[1764352050462,0.04471,90536.0,90535.0,0.0110432]
[1764352051368,0.04471,90531.0,90530.0,0.25869669]
[1764352051570,0.02187,90528.0,90527.0,0.0339699]
[1764352051871,0.002,90536.0,90535.0,0.0110432]
[1764352052072,0.002,90536.0,90535.0,0.3059232]
[1764352053269,0.02187,90536.0,90535.0,0.3059232]
[1764352053568,0.01388,90545.0,90539.0,0.0559227]
[1764352053768,0.1912735,90612.0,90545.0,0.055922]
[1764352053769,0.0110408,90555.0,90545.0,0.055922]
[1764352053971,0.01388,90564.0,90545.0,0.425922]
[1764352054170,0.04471,90557.0,90556.0,0.0110406]
[1764352054374,0.01388,90564.0,90534.0,0.0110432]
[1764352054375,0.02187,90556.0,90555.0,0.02276]
[1764352054575,0.02187,90556.0,90555.0,0.04488]
[1764352054781,0.0110398,90563.0,90550.0,0.25869669]
[1764352055069,0.04471,90560.0,90559.0,0.0110402]
[1764352056069,0.0110391,90569.0,90567.0,0.0110392]
[1764352056272,0.02387999,90600.0,90579.0,0.04488]
[1764352056273,0.04471,90580.0,90579.0,0.04488]
[1764352056480,0.08673881,90590.0,90589.0,0.0559166]
[1764352056775,0.01388,90600.0,90597.0,0.0110356]
[1764352056973,0.02187,90598.0,90597.0,0.3910356]
[1764352057175,0.02187,90598.0,90597.0,0.38]
[1764352057367,0.02187,90598.0,90597.0,0.3910356]
[1764352057767,0.02187,90598.0,90597.0,0.0110356]
[1764352057976,0.02187,90598.0,90589.0,0.25886229]
[1764352058170,0.04471,90595.0,90594.0,0.033796]
[1764352058365,0.04471,90595.0,90594.0,0.123796]
[1764352058569,0.04471,90595.0,90594.0,0.011036]
[1764352059168,0.04471,90595.0,90594.0,0.033796]
[1764352059367,1.5,90599.0,90598.0,0.0559155]
[1764352059667,1.5,90599.0,90598.0,0.4159155]
[1764352060470,0.003,90599.0,90598.0,0.4159155]
[1764352060671,0.04471,90594.0,90593.0,0.0110361]
[1764352060977,0.04471,90590.0,90589.0,0.27468626]
[1764352061272,0.04471,90590.0,90589.0,0.44086957]
[1764352061676,0.0110358,90596.0,90589.0,0.39598957]
[1764352061978,0.003,90599.0,90598.0,0.04488]
[1764352062170,0.00027592,90606.0,90605.0,0.0559147]
[1764352062369,0.00027592,90606.0,90605.0,0.4359147]
[1764352062776,0.04498592,90606.0,90605.0,0.08]
[1764352063075,0.0110353,90600.0,90589.0,0.27468626]
[1764352063274,0.02187,90597.0,90594.0,0.011036]
[1764352063482,0.0110349,90603.0,90594.0,0.36]
[1764352063675,0.0329053,90600.0,90599.0,0.02276]
[1764352063871,0.00027592,90606.0,90589.0,0.01598957]
[1764352063872,0.0696256,90597.0,90596.0,0.25869669]
[1764352064073,0.04471,90591.0,90590.0,0.0110365]
[1764352064274,0.04471,90591.0,90590.0,0.2510365]
[1764352064676,0.001,90603.0,90602.0,0.02276]
[1764352064980,0.001,90603.0,90602.0,0.40488]
[1764352066170,0.00027592,90606.0,90605.0,0.04488]
[1764352066382,0.00027592,90606.0,90605.0,0.46488]
[1764352067376,0.00327592,90606.0,90605.0,0.46488]
[1764352067579,0.00327592,90606.0,90605.0,0.04488]
[1764352067878,0.00327592,90606.0,90605.0,0.39488]
[1764352069777,0.02514592,90606.0,90605.0,0.39488]
[1764352069979,0.00327592,90606.0,90605.0,0.39488]
[1764352070175,0.02187,90624.0,90623.0,0.0559125]
[1764352070479,0.03575,90636.0,90635.0,0.02276]
[1764352070681,0.02187,90641.0,90635.0,0.38]
[1764352070891,0.0557403,90641.0,90640.0,0.02276]
[1764352071073,0.02187,90630.0,90629.0,0.0110316]
[1764352071271,0.04471,90633.0,90632.0,0.0559113]
[1764352071479,0.04471,90633.0,90632.0,0.04488]
[1764352071684,0.04471,90633.0,90626.0,0.26972879]
[1764352071685,0.011032,90628.0,90626.0,0.26972879]
[1764352071989,0.04471,90627.0,90626.0,0.25869669]
[1764352072182,0.02187,90618.0,90617.0,0.28145669]
[1764352072375,0.04471,90615.0,90614.0,0.0001656]
[1764352073578,0.04471,90615.0,90614.0,0.0041656]
[1764352074282,0.04471,90619.0,90618.0,0.0110331]
[1764352074485,0.04471,90616.0,90614.0,0.0021656]
[1764352074782,0.04471,90616.0,90614.0,0.0011656]
[1764352074783,0.04471,90615.0,90614.0,0.0011656]
[1764352075286,0.44471,90615.0,90614.0,0.0011656]
[1764352076377,0.44471,90615.0,90600.0,0.25869669]
[1764352076378,0.04291,90601.0,90600.0,0.25869669]
[1764352076589,0.01288,90612.0,90603.0,0.0110348]
[1764352076778,0.04275,90604.0,90603.0,0.0110348]
[1764352077174,0.04275,90604.0,90603.0,0.4210348]
[1764352077585,0.05563,90600.0,90599.0,0.01618829]
[1764352077887,0.05563,90600.0,90599.0,0.42]
[1764352078085,0.05563,90600.0,90594.0,0.0001655]
[1764352078086,0.04275,90595.0,90594.0,0.0001655]
[1764352078991,0.0666671,90585.0,90574.0,0.0110384]
[1764352079290,0.02171,90585.0,90584.0,0.04305972]
[1764352080084,0.04275,90585.0,90584.0,0.04305972]
[1764352080286,0.04275,90585.0,90584.0,0.04605972]
[1764352080684,0.04275,90585.0,90584.0,0.29605972]
[1764352080884,0.02171,90585.0,90584.0,0.29705972]
[1764352081287,0.04275,90588.0,90587.0,0.04297]
[1764352081590,0.05563,90588.0,90587.0,0.02124]
[1764352081793,0.04275,90585.0,90584.0,0.00408972]
[1764352082092,0.0537871,90585.0,90584.0,0.00508972]
[1764352082890,0.0537871,90585.0,90584.0,8.972e-05]
[1764352083591,0.0537871,90585.0,90584.0,0.00208972]
[1764352084082,0.04275,90585.0,90584.0,0.04305972]
[1764352084389,0.42275,90585.0,90575.0,0.00016559]
[1764352084593,0.04275,90576.0,90575.0,0.42016559]
[1764352084786,0.04275,90576.0,90575.0,0.00016559]
[1764352085492,0.04275,90576.0,90550.0,0.25869669]
[1764352085493,0.0537912,90551.0,90550.0,0.25869669]
[1764352085685,0.05563,90541.0,90540.0,0.25869669]
[1764352085884,0.04275,90534.0,90533.0,0.02124]
[1764352086086,0.04284671,90534.0,90533.0,0.39124]
[1764352086295,0.04284671,90534.0,90533.0,0.26124]
[1764352086491,0.04284671,90534.0,90533.0,0.02124]
[1764352086696,0.04275,90531.0,90530.0,0.26974049]
[1764352086997,0.04275,90528.0,90527.0,0.0110441]
[1764352087195,0.04275,90528.0,90527.0,0.4010441]
[1764352088188,0.04275,90528.0,90527.0,0.39]
[1764352088390,0.04275,90525.0,90524.0,0.00016569]
[1764352088796,0.04275,90525.0,90524.0,0.39245019]
[1764352089396,0.04275,90525.0,90524.0,0.39645019]
[1764352089597,0.02171,90525.0,90524.0,0.41818019]
[1764352089802,0.04275,90533.0,90532.0,0.0110434]
[1764352090002,0.04275,90533.0,90532.0,0.4410434]
[1764352090495,9.671e-05,90534.0,90533.0,0.04297]
[1764352090699,9.671e-05,90534.0,90533.0,0.47297]
[1764352091095,0.04284671,90534.0,90533.0,0.37124]
[1764352091394,0.04284671,90534.0,90524.0,0.21101849]
[1764352091395,0.02171,90525.0,90524.0,0.03645019]
[1764352091594,0.02171,90525.0,90524.0,0.47818019]
[1764352091800,0.04275,90525.0,90524.0,0.47818019]
[1764352091985,0.04275,90525.0,90524.0,0.47418019]
[1764352092194,0.02171,90525.0,90524.0,0.47418019]
[1764352092594,0.04275,90525.0,90524.0,0.47418019]
[1764352092890,0.02171,90528.0,90527.0,0.0540142]
[1764352093198,0.05563,90528.0,90527.0,0.4340142]
[1764352093399,0.04275,90528.0,90527.0,0.4340142]
[1764352094300,0.0110379,90579.0,90533.0,0.0540134]
[1764352094493,0.03275,90561.0,90560.0,0.02124]
[1764352094694,0.0110393,90567.0,90564.0,0.0110396]
[1764352094895,0.04275,90568.0,90567.0,0.0110392]
[1764352095298,0.04275,90568.0,90567.0,0.0540092]
[1764352095893,0.04275,90568.0,90567.0,0.4540092]
[1764352096094,0.04275,90568.0,90567.0,0.1060092]
[1764352096296,0.04275,90568.0,90567.0,0.4860092]
[1764352096505,0.04291569,90577.0,90576.0,0.0322782]
[1764352096700,0.04291569,90577.0,90576.0,0.4340082]
[1764352096896,0.04291569,90577.0,90567.0,0.002]
[1764352097089,0.05563,90571.0,90570.0,0.0110389]
[1764352098096,0.0110389,90570.0,90567.0,0.002]
[1764352098300,0.04468,90568.0,90567.0,0.022]
[1764352098789,0.04468,90568.0,90567.0,0.002]
[1764352098991,0.02241,90568.0,90567.0,0.44541]
[1764352099188,0.00016569,90577.0,90576.0,0.0564482]
[1764352099403,0.01288,90600.0,90597.0,0.0110356]
[1764352099703,0.04468,90598.0,90590.0,0.2058528]
[1764352099899,0.02241,90596.0,90595.0,0.0331358]
[1764352100200,0.01288,90610.0,90595.0,0.4010358]
[1764352100201,0.04468,90602.0,90595.0,0.4010358]
[1764352100394,0.01288,90610.0,90590.0,0.01480017]
[1764352100395,0.04468,90591.0,90590.0,0.01480017]
[1764352100700,0.01341,90597.0,90593.0,0.0110361]
[1764352100701,0.0244457,90597.0,90593.0,0.0110361]
[1764352100900,0.04468,90594.0,90593.0,0.0110361]
[1764352101300,0.04468,90594.0,90593.0,0.3610361]
[1764352101507,0.04468,90605.0,90604.0,0.0110347]
[1764352102307,0.02241,90605.0,90604.0,0.0564447]
[1764352102600,0.00016494,90608.0,90607.0,0.0564444]
[1764352103193,0.05809,90623.0,90622.0,0.0110326]
[1764352103394,0.04468,90619.0,90613.0,0.2058528]
[1764352103592,0.04468,90617.0,90616.0,0.0110333]
[1764352104196,0.04468,90617.0,90613.0,0.2058528]
[1764352104197,0.02241,90614.0,90613.0,0.2058528]
[1764352104400,0.04468,90612.0,90611.0,0.0110339]
[1764352104903,0.04468,90612.0,90611.0,0.0331339]
[1764352105103,0.04468,90619.0,90618.0,0.011033]
[1764352105696,0.04468,90619.0,90607.0,0.00016558]
[1764352105697,0.02227,90612.0,90611.0,0.01465685]
[1764352105902,0.04468,90612.0,90611.0,0.31]
[1764352106809,0.0555143,90608.0,90607.0,0.00016558]
[1764352107104,0.002,90612.0,90611.0,0.0553539]
[1764352107309,0.02276,90634.0,90633.0,0.0553513]
[1764352107498,0.04448,90644.0,90643.0,0.03207]
[1764352107697,0.0002758,90646.0,90624.0,0.22968068]
[1764352107698,0.0230358,90646.0,90645.0,0.04432]
[1764352107901,0.0447558,90646.0,90645.0,0.04432]
[1764352108100,0.0230358,90646.0,90645.0,0.04432]
[1764352108300,0.0230358,90646.0,90624.0,0.02382788]
[1764352108301,0.04448,90625.0,90624.0,0.00016558]
[1764352108501,0.0555122,90625.0,90624.0,0.00016558]
[1764352108705,0.0555127,90621.0,90620.0,0.2058528]
[1764352108996,0.0555127,90621.0,90614.0,0.0146547]
[1764352108997,0.04448,90621.0,90614.0,0.0146547]
[1764352109306,0.01359,90636.0,90614.0,0.0146547]
[1764352109307,0.04448,90630.0,90624.0,0.0110323]
[1764352109606,0.01359,90636.0,90629.0,0.04432]
[1764352109805,0.00016527,90636.0,90635.0,0.04432]
[1764352110308,0.0002758,90646.0,90636.0,0.0110309]
[1764352110613,0.0002758,90646.0,90626.0,0.2058528]
[1764352110807,0.0447558,90646.0,90642.0,0.0110301]
[1764352111106,0.02276,90643.0,90636.0,0.2058528]
[1764352111299,0.04448,90637.0,90636.0,0.5768836]
[1764352111703,0.04448,90637.0,90636.0,0.3710308]
[1764352111907,0.04448,90637.0,90636.0,0.05]
[1764352112303,0.04448,90637.0,90636.0,0.001]
[1764352112607,0.04448,90637.0,90636.0,0.02]
[1764352112806,0.04448,90637.0,90636.0,0.021]
[1764352112998,0.04448,90637.0,90636.0,0.001]
[1764352114302,0.0002758,90646.0,90645.0,0.04432]
[1764352114615,0.04448,90644.0,90643.0,0.01103]
[1764352115013,0.0002758,90646.0,90645.0,0.04432]
[1764352115312,0.04548,90646.0,90636.0,0.20601829]
[1764352115620,0.04448,90641.0,90640.0,0.04432]
[1764352116513,0.0555108,90637.0,90636.0,0.00116549]
[1764352117509,0.04448,90637.0,90636.0,0.00116549]
[1764352117910,0.04448,90637.0,90636.0,0.00016549]
[1764352118107,0.02276,90637.0,90636.0,0.04448549]
[1764352118416,0.04448,90637.0,90636.0,0.00016549]
[1764352118606,0.04448,90637.0,90636.0,0.00116549]
[1764352119508,0.81448,90637.0,90636.0,0.00116549]
[1764352119718,0.04448,90621.0,90620.0,0.2168856]
[1764352119907,0.04448,90621.0,90620.0,0.0110328]
[1764352120313,0.04448,90621.0,90620.0,0.0553528]
[1764352120613,0.04464549,90630.0,90629.0,0.0110317]
[1764352120815,0.04464549,90630.0,90611.0,0.20601829]
[1764352120816,0.04448,90612.0,90611.0,0.00016549]
[1764352121025,0.04448,90612.0,90576.0,0.0110382]
[1764352121026,0.0110357,90597.0,90588.0,0.0110366]
[1764352121209,0.02276,90594.0,90587.0,0.2058528]
[1764352121410,0.02276,90588.0,90587.0,0.5558528]
[1764352121713,0.04448,90588.0,90587.0,0.4053569]
[1764352121913,0.02276,90588.0,90587.0,0.4053569]
[1764352122320,0.00016559,90597.0,90596.0,0.04432]
[1764352122510,0.00016559,90597.0,90596.0,0.39432]
[1764352122814,0.02276,90595.0,90594.0,0.011036]
[1764352123022,0.04448,90595.0,90594.0,0.011036]
[1764352123619,0.02276,90595.0,90594.0,0.055356]
[1764352124018,0.00016559,90597.0,90596.0,0.04432]
[1764352124323,0.00016559,90597.0,90596.0,0.43432]
[1764352124911,0.00016559,90597.0,90596.0,0.43632]
[1764352125124,0.00116559,90597.0,90596.0,0.44732]
[1764352126915,0.0110305,90640.0,90616.0,0.0110332]
[1764352127116,0.0110305,90640.0,90599.0,0.0110353]
[1764352127117,0.0555136,90614.0,90613.0,0.2058528]